bitfinex/quotes_ETHUSD_20240603
["timestamp","ask_amount","ask_price","bid_price","bid_amount"]
[1717436497571,0.62517366,3777.4,3777.3,4.76765577]
[1717436497909,0.62505415,3777.4,3777.3,4.76765577]
[1717436498366,2.21449758,3777.4,3777.3,4.76765577]
[1717436498613,0.62505415,3777.4,3777.3,4.76765577]
[1717436498818,2.21448097,3777.4,3777.3,4.76765577]
[1717436499263,1.64230661,3777.4,3777.3,4.76765577]
[1717436499821,2.21448097,3777.4,3777.3,4.76765577]
[1717436500043,2.21449406,3777.4,3777.3,4.76765577]
[1717436500242,1.64230205,3777.4,3777.3,4.76765577]
[1717436500457,2.21449406,3777.4,3777.3,4.76765577]
[1717436500616,1.64230205,3777.4,3777.3,4.76765577]
[1717436500822,2.21449406,3777.4,3777.3,5.24442135]
[1717436501016,1.64230205,3777.4,3777.3,5.24442135]
[1717436501221,0.05287979,3777.4,3777.3,5.24442135]
[1717436501677,2.14392234,3777.7,3777.3,5.24442135]
[1717436501962,2.16156786,3777.6,3777.5,0.799]
[1717436502165,0.0530166,3777.6,3777.5,0.799]
[1717436502376,0.60751668,3777.6,3777.5,0.799]
[1717436502967,0.0530166,3777.6,3777.5,0.799]
[1717436503332,0.60751668,3777.6,3777.5,0.799]
[1717436505135,0.0530166,3777.6,3777.5,2.12026577]
[1717436505335,0.0530166,3777.6,3777.5,2.59703135]
[1717436505840,0.55422192,3777.9,3777.6,2.64718]
[1717436506103,0.55422192,3777.9,3777.7,2.12026577]
[1717436507560,0.55422192,3777.9,3777.7,1.32126577]
[1717436507876,0.83155184,3778.1,3777.8,0.799]
[1717436507877,0.83155184,3778.0,3777.8,0.799]
[1717436508072,0.83155184,3778.0,3777.8,2.12026577]
[1717436508854,0.05309288,3777.9,3777.8,2.12026577]
[1717436510340,0.60720954,3777.9,3777.8,2.12026577]
[1717436510741,0.05309288,3777.9,3777.8,5.03221035]
[1717436511354,0.55411666,3778.7,3777.8,5.03221035]
[1717436511676,0.55411666,3778.7,3778.6,0.799]
[1717436512043,0.83155184,3778.8,3778.6,0.799]
[1717436512356,0.5538644,3778.8,3778.6,0.799]
[1717436514587,0.5538644,3778.9,3778.6,0.799]
[1717436515279,0.5538644,3779.0,3778.6,0.799]
[1717436515877,0.5538644,3779.0,3778.7,1.32126577]
[1717436516072,0.5538644,3779.0,3778.8,0.799]
[1717436516381,2.8134644,3779.1,3778.8,0.799]
[1717436516688,3.45540541,3779.1,3778.8,0.799]
[1717436516899,0.5538644,3779.0,3778.8,0.799]
[1717436517471,2.8134644,3779.1,3778.8,0.799]
[1717436518370,2.2596,3779.1,3778.8,0.799]
[1717436519200,0.6288152,3779.2,3778.8,0.799]
[1717436519434,4.20079399,3779.2,3778.8,0.799]
[1717436519712,3.6288152,3779.2,3778.8,0.799]
[1717436520491,5.217678,3779.2,3778.8,0.799]
[1717436521014,3.6288152,3779.2,3778.8,0.799]
[1717436521710,0.6288152,3779.2,3778.8,0.799]
[1717436522009,1.20079395,3779.2,3778.8,0.799]
[1717436522216,2.78963953,3779.2,3778.8,0.799]
[1717436522401,1.20079395,3779.2,3778.8,0.799]
[1717436522586,1.20079319,3779.2,3778.8,0.799]
[1717436523212,2.23575656,3779.2,3778.8,0.799]
[1717436523922,0.05195317,3779.1,3778.8,0.799]
[1717436524817,0.05195317,3779.1,3779.0,0.799]
[1717436529026,0.05195317,3779.1,3778.7,1.32126577]
[1717436529027,0.05195317,3779.1,3778.8,0.799]
[1717436530727,0.05195317,3779.1,3779.0,0.799]
[1717436531142,0.05195317,3779.1,3779.0,2.12026577]
[1717436531341,0.05195317,3779.1,3779.0,2.59691835]
[1717436534446,0.0749508,3779.2,3779.1,2.64613]
[1717436534634,0.0749508,3779.2,3779.1,3.96739577]
[1717436534832,0.12378948,3779.2,3779.1,3.96739577]
[1717436536268,0.12378948,3779.2,3779.1,4.76639577]
[1717436536442,0.12378948,3779.2,3779.1,5.5278806]
[1717436538144,0.12378948,3779.2,3779.1,4.7288806]
[1717436538361,0.12378948,3779.2,3779.1,5.5278806]
[1717436538974,0.12378948,3779.2,3779.1,8.0166806]
[1717436543339,0.0749508,3779.2,3779.1,8.0166806]
[1717436543781,0.12400867,3779.2,3779.1,8.0166806]
[1717436544469,0.0749508,3779.2,3779.1,8.0166806]
[1717436545642,0.12401653,3779.2,3779.1,8.0166806]
[1717436547654,0.0749508,3779.2,3779.1,8.0166806]
[1717436551588,0.12386432,3779.2,3779.1,8.0166806]
[1717436552815,0.12386432,3779.2,3779.1,10.6628106]
[1717436552995,0.0749508,3779.2,3779.1,10.6628106]
[1717436565179,0.0749508,3779.2,3779.1,13.4478106]
[1717436570165,0.0749508,3779.2,3779.1,13.4478106]
[1717436573049,0.0749508,3779.2,3779.1,16.6439406]
[1717436573261,0.0065934,3779.9,3779.8,2.64564]
[1717436573415,0.0065934,3779.9,3779.8,5.03046977]
[1717436583890,0.05274726,3779.9,3779.8,5.03046977]
[1717436592471,0.05274726,3779.9,3779.8,7.67610977]
[1717436595506,0.05274726,3779.9,3779.8,6.87710977]
[1717436595811,0.05274726,3779.9,3779.8,7.67610977]
[1717436596110,0.5538644,3780.4,3780.3,2.2796]
[1717436596261,0.5538644,3780.5,3780.4,2.64522]
[1717436596457,0.5538644,3780.9,3780.8,2.64494]
[1717436596686,4.88901863,3781.1,3780.8,2.64494]
[1717436596687,0.5538644,3781.0,3780.8,4.76520577]
[1717436596991,4.88901863,3781.1,3781.0,2.6448]
[1717436597202,4.6290561,3781.1,3781.0,3.96606577]
[1717436597372,4.72095846,3781.1,3781.0,3.96606577]
[1717436598489,4.7207342,3781.1,3781.0,3.96606577]
[1717436599187,4.72070652,3781.1,3781.0,3.96606577]
[1717436599383,3.87242733,3781.1,3781.0,3.96606577]
[1717436599900,3.30082035,3781.1,3781.0,3.96606577]
[1717436600901,2.4694,3781.1,3781.0,3.96606577]
[1717436601258,3.30082035,3781.1,3781.0,3.96606577]
[1717436601660,4.72072622,3781.1,3781.0,3.96606577]
[1717436602459,3.8721264,3781.1,3781.0,3.96606577]
[1717436602889,5.45992358,3781.1,3781.0,3.96606577]
[1717436603290,3.8721264,3781.1,3781.0,3.96606577]
[1717436603678,3.91594464,3781.1,3781.0,3.96606577]
[1717436603874,5.50374182,3781.1,3781.0,3.96606577]
[1717436604272,3.91594464,3781.1,3781.0,3.96606577]
[1717436605012,3.34432183,3781.1,3781.0,3.96606577]
[1717436606363,3.91594174,3781.1,3781.0,3.96606577]
[1717436607475,1.44654174,3781.1,3781.0,3.96606577]
[1717436607691,0.5358886,3781.1,3781.0,4.44257235]
[1717436607896,0.55381673,3781.9,3781.5,2.64445]
[1717436608115,1.58779508,3782.2,3781.9,2.64417]
[1717436608392,0.55352369,3782.2,3782.1,4.76429577]
[1717436608693,1.10791164,3782.6,3782.1,4.76429577]
[1717436608694,0.55352369,3782.6,3782.5,2.64375]
[1717436608873,3.88419508,3783.2,3782.5,4.76401577]
[1717436608874,0.67846909,3782.9,3782.5,4.76401577]
[1717436609070,1.08674716,3782.9,3782.7,2.64361]
[1717436609296,0.53322347,3782.9,3782.7,3.96487577]
[1717436609505,0.55352369,3782.8,3782.7,3.96487577]
[1717436609908,1.08674716,3782.9,3782.7,3.96487577]
[1717436610293,0.53322347,3782.9,3782.7,3.96487577]
[1717436610997,0.53322347,3782.9,3782.7,2.64361]
[1717436611197,0.18857472,3782.8,3782.7,2.64361]
[1717436611706,2.4945,3782.7,3781.9,2.64413]
[1717436611917,1.35252369,3782.6,3782.0,1.32126577]
[1717436612288,0.55352369,3782.6,3782.0,1.32126577]
[1717436612482,3.04802369,3782.7,3782.1,2.64403]
[1717436612704,0.45688219,3782.6,3782.1,3.96529577]
[1717436612899,1.01040588,3782.6,3782.1,3.96529577]
[1717436613414,0.45688219,3782.6,3782.1,3.96529577]
[1717436613910,1.80940588,3782.6,3782.1,3.96529577]
[1717436614215,0.799,3782.2,3781.7,2.64427]
[1717436614385,0.799,3782.2,3781.7,3.96553577]
[1717436614386,0.799,3782.0,3781.7,3.96553577]
[1717436614585,0.799,3782.0,3781.3,2.64458]
[1717436614791,0.799,3781.8,3781.4,1.32126577]
[1717436614990,1.35252369,3782.0,3781.4,1.32126577]
[1717436615182,1.04612722,3782.0,3781.5,2.64444]
[1717436615380,0.49260353,3782.0,3781.5,3.96570577]
[1717436615621,0.03227626,3781.9,3781.5,3.96570577]
[1717436616434,0.03227626,3781.9,3781.8,2.64424]
[1717436616721,0.55352369,3782.5,3781.8,3.96550577]
[1717436616935,0.03244152,3782.4,3782.0,2.64405]
[1717436617091,0.03244152,3782.4,3782.1,1.32126577]
[1717436617292,2.4656,3782.6,3782.1,1.32126577]
[1717436617293,2.4656,3782.6,3782.2,2.64396]
[1717436617507,1.36161239,3782.9,3782.4,2.64382]
[1717436617508,0.03184765,3782.5,3782.4,2.64382]
[1717436617806,0.53322347,3782.9,3782.4,3.96508577]
[1717436618014,0.53322347,3782.9,3782.5,1.32126577]
[1717436619002,0.53322347,3782.9,3782.5,2.12026577]
[1717436619217,0.1249454,3782.9,3782.5,2.12026577]
[1717436619550,0.1249454,3782.9,3782.6,2.64367]
[1717436619704,0.1249454,3782.9,3782.7,1.32126577]
[1717436620829,0.1249454,3782.9,3782.8,2.64354]
[1717436621028,0.1249454,3782.9,3782.8,3.96480577]
[1717436622586,0.1249454,3782.9,3782.8,4.36128635]
[1717436624047,0.1249454,3782.9,3782.8,3.96480577]
[1717436624588,0.15806834,3782.9,3782.8,3.96480577]
[1717436627599,0.1249454,3782.9,3782.8,3.96480577]
[1717436629326,0.1249454,3782.9,3782.8,6.60834577]
[1717436629713,0.1249454,3782.9,3782.8,9.39334577]
[1717436629919,0.1249454,3782.9,3782.8,12.85478035]
[1717436636249,0.1249454,3782.9,3782.8,5.09544035]
[1717436636415,0.1249454,3782.9,3782.8,3.96480577]
[1717436639057,0.15851906,3782.9,3782.8,3.96480577]
[1717436649208,0.15851906,3782.9,3782.8,6.74980577]
[1717436649358,6.35e-06,3782.9,3782.8,17.86788577]
[1717436649655,0.55352369,3784.7,3782.8,17.86788577]
[1717436649656,2.357,3784.3,3784.0,2.64266]
[1717436649861,2.357,3784.3,3784.1,1.32126577]
[1717436650020,0.0305828,3784.2,3784.1,1.32126577]
[1717436650421,2.357,3784.3,3784.1,1.32126577]
[1717436650618,0.0305828,3784.2,3784.1,1.32126577]
[1717436651032,2.357,3784.3,3784.1,1.32126577]
[1717436651234,0.03056645,3784.2,3784.1,1.32126577]
[1717436651545,2.357,3784.3,3784.1,1.32126577]
[1717436651751,0.03055011,3784.2,3783.6,2.64291]
[1717436651926,0.03055011,3784.2,3782.4,2.6438]
[1717436651927,2.3853,3784.1,3783.7,1.32126577]
[1717436652122,0.03054801,3784.0,3783.7,1.32126577]
[1717436653467,0.60177862,3784.0,3783.7,1.32126577]
[1717436653656,0.03054801,3784.0,3783.7,1.32126577]
[1717436654055,0.03054801,3784.0,3783.8,2.64284]
[1717436654274,0.03054801,3784.0,3783.9,1.32126577]
[1717436655071,0.03054801,3784.0,3783.4,2.64308]
[1717436655255,0.56993951,3784.0,3783.5,1.32126577]
[1717436655427,0.55352369,3783.8,3783.5,1.32126577]
[1717436655891,0.03052708,3783.7,3783.5,1.32126577]
[1717436656231,1.66414912,3784.0,3783.5,1.32126577]
[1717436656433,0.0304874,3783.6,3783.5,1.32126577]
[1717436657030,0.55352369,3783.9,3783.5,1.32126577]
[1717436657230,0.03050375,3783.6,3783.5,1.32126577]
[1717436657432,2.32,3783.6,3783.5,1.32126577]
[1717436657663,2.35050375,3783.6,3783.5,1.32126577]
[1717436657872,0.03050375,3783.6,3783.5,1.32126577]
[1717436658450,0.55352369,3784.0,3783.6,2.64298]
[1717436658656,2.3016,3783.9,3783.7,1.32126577]
[1717436658861,2.85512369,3783.9,3783.7,1.32126577]
[1717436660154,0.55352369,3783.8,3783.7,1.32126577]
[1717436661361,3.12998892,3783.9,3783.7,1.32126577]
[1717436661550,3.85029899,3783.9,3783.7,1.32126577]
[1717436662059,0.82838892,3783.8,3783.7,1.32126577]
[1717436662272,0.57126131,3783.8,3783.7,1.32126577]
[1717436662472,5.71661227,3783.9,3783.7,1.32126577]
[1717436662679,4.12982171,3783.9,3783.7,1.32126577]
[1717436662862,1.67917218,3783.8,3783.7,1.32126577]
[1717436663260,2.1580511,3783.8,3783.7,1.32126577]
[1717436663460,2.81388817,3783.8,3783.7,1.32126577]
[1717436663963,2.33461665,3783.8,3783.7,1.32126577]
[1717436664458,1.67877958,3783.8,3783.7,1.32126577]
[1717436664880,0.57126054,3783.8,3783.7,1.32126577]
[1717436665079,2.1580511,3783.8,3783.7,1.32126577]
[1717436665465,3.5424499,3783.8,3783.7,1.32126577]
[1717436666288,3.5424499,3783.8,3782.7,2.64361]
[1717436666600,0.55413533,3782.9,3782.8,1.32126577]
[1717436666889,0.831203,3782.9,3782.8,1.32126577]
[1717436667755,1.10827066,3783.0,3782.8,1.32126577]
[1717436668573,1.10827066,3782.9,3782.8,1.32126577]
[1717436669465,0.83253158,3782.9,3781.9,2.64413]
[1717436669668,0.55412841,3782.4,3782.0,1.32126577]
[1717436669890,0.55412841,3782.2,3782.0,1.32126577]
[1717436670296,0.55412841,3782.3,3782.0,1.32126577]
[1717436671891,0.55412841,3782.2,3782.0,1.32126577]
[1717436672107,0.55412841,3782.1,3782.0,1.32126577]
[1717436672281,0.55412841,3782.2,3782.0,1.32126577]
[1717436672607,0.55412841,3782.1,3782.0,1.32126577]
[1717436672909,0.83119261,3782.1,3782.0,1.32126577]
[1717436673271,0.83119261,3782.2,3782.0,1.32126577]
[1717436673469,0.83119261,3782.3,3782.0,1.32126577]
[1717436673689,0.55340195,3782.1,3782.0,1.32126577]
[1717436674093,0.58265764,3782.1,3782.0,1.32126577]
[1717436674297,0.02925569,3782.1,3782.0,1.32126577]
[1717436674982,2.82250195,3782.5,3782.0,1.32126577]
[1717436675187,0.02926438,3782.4,3782.0,1.32126577]
[1717436675625,0.02926438,3782.4,3782.1,2.64403]
[1717436675935,0.55340195,3782.8,3782.3,1.32126577]
[1717436676214,0.02955297,3782.7,3782.3,1.32126577]
[1717436676575,0.55340195,3783.1,3782.3,1.32126577]
[1717436677078,0.02850172,3783.0,3782.6,2.64367]
[1717436677278,0.02850172,3783.0,3782.7,1.32126577]
[1717436678593,0.55340195,3783.2,3782.7,1.32126577]
[1717436678790,0.02720504,3782.9,3782.7,1.32126577]
[1717436679122,0.55340195,3783.2,3782.7,1.32126577]
[1717436679284,0.02856804,3782.8,3782.7,1.32126577]
[1717436679484,0.55340195,3783.2,3782.7,1.71775935]
[1717436679909,0.5820727,3783.1,3782.7,1.71775935]
[1717436683895,0.55340195,3783.0,3782.7,1.71775935]
[1717436684096,0.55340195,3782.9,3782.7,1.32126577]
[1717436684331,0.58211495,3782.9,3782.7,1.32126577]
[1717436684539,0.55340195,3782.8,3782.7,1.32126577]
[1717436684896,0.02865697,3782.8,3782.7,1.32126577]
[1717436685103,0.58184685,3782.8,3782.7,1.32126577]
[1717436685900,0.02865697,3782.8,3782.7,1.32126577]
[1717436686624,0.02865697,3782.8,3782.2,2.6439]
[1717436686834,0.55316988,3782.7,3782.3,1.32126577]
[1717436687135,0.02779841,3782.6,3782.3,1.32126577]
[1717436688004,0.55316988,3782.5,3782.3,1.32126577]
[1717436688655,0.02768381,3782.4,3782.3,1.32126577]
[1717436689546,0.55316988,3782.6,3782.3,1.32126577]
[1717436690055,0.02787207,3782.5,3782.3,1.32126577]
[1717436691111,2.90566988,3782.7,3782.3,1.32126577]
[1717436691295,0.55316988,3782.6,3782.3,1.32126577]
[1717436691494,0.58172267,3782.6,3782.3,1.32126577]
[1717436691803,0.02855279,3782.6,3782.3,1.32126577]
[1717436692340,0.58172267,3782.6,3782.3,1.32126577]
[1717436693223,0.02855279,3782.6,3782.3,1.32126577]
[1717436694150,0.58172267,3782.6,3782.3,1.32126577]
[1717436695846,0.02855279,3782.6,3782.3,1.32126577]
[1717436696238,0.58172267,3782.6,3782.3,1.32126577]
[1717436697147,0.02855279,3782.6,3782.3,1.32126577]
[1717436697516,0.58172267,3782.6,3782.3,1.32126577]
[1717436697818,0.02855279,3782.6,3782.3,1.32126577]
[1717436698251,0.02855279,3782.6,3782.4,2.64382]
[1717436698449,0.02855279,3782.6,3782.5,1.32126577]
[1717436698849,0.55316988,3782.9,3782.6,2.64367]
[1717436699049,0.55316988,3782.9,3782.7,1.32126577]
[1717436699409,0.55316988,3782.8,3782.7,1.32126577]
[1717436699645,0.55316988,3782.9,3782.7,1.32126577]
[1717436699848,0.55316988,3782.9,3782.8,2.64354]
[1717436700008,1.58728989,3783.2,3782.8,3.96480577]
[1717436700009,0.55316988,3783.0,3782.8,3.96480577]
[1717436700345,0.55316988,3783.0,3782.9,1.32126577]
[1717436700908,0.55316988,3783.1,3782.9,1.32126577]
[1717436701228,0.55316988,3783.2,3782.9,1.32126577]
[1717436701422,0.55316988,3783.3,3782.9,1.32126577]
[1717436701949,0.55316988,3783.2,3783.0,2.64339]
[1717436702152,0.55316988,3783.2,3783.1,1.32126577]
[1717436702555,2.4672,3783.1,3782.0,2.41805724]
[1717436702707,2.4672,3783.1,3782.1,1.32126577]
[1717436702708,3.02036988,3783.1,3782.1,1.32126577]
[1717436703149,0.55316988,3782.8,3782.1,1.32126577]
[1717436703927,0.02719692,3782.7,3782.2,2.6439]
[1717436704264,0.02719692,3782.7,3782.4,4.95991]
[1717436704455,0.02719692,3782.7,3782.6,2.64368]
[1717436704759,0.55316988,3782.8,3782.6,3.96494577]
[1717436704910,0.55316988,3782.8,3782.6,2.64368]
[1717436704911,0.02790863,3782.7,3782.6,2.64368]
[1717436705360,0.55316988,3782.9,3782.6,3.96494577]
[1717436705987,0.02723085,3782.8,3782.6,3.96494577]
[1717436706153,0.02723085,3782.8,3782.7,1.32126577]
[1717436706360,0.55316988,3782.9,3782.8,2.64354]
[1717436706558,0.55316988,3782.9,3782.8,3.96480577]
[1717436708384,0.83119261,3783.0,3782.8,3.96480577]
[1717436708564,0.83119261,3783.0,3782.9,1.32126577]
[1717436709660,1.10825682,3783.0,3782.9,1.32126577]
[1717436710888,1.10825682,3783.1,3782.9,1.32126577]
[1717436711249,1.10825682,3783.0,3782.9,1.32126577]
[1717436711451,3.95171046,3783.1,3782.9,1.32126577]
[1717436711650,0.57135787,3783.0,3782.9,1.32126577]
[1717436712664,2.411,3782.9,3782.4,2.64375]
[1717436712874,2.411,3782.9,3782.5,1.32126577]
[1717436713120,0.83131841,3782.6,3782.5,1.32126577]
[1717436713403,1.10842454,3782.7,3782.5,1.32126577]
[1717436714404,0.83136346,3782.6,3782.5,1.32126577]
[1717436714577,0.83136346,3782.7,3782.5,1.32126577]
[1717436715104,0.83136346,3782.6,3782.5,1.32126577]
[1717436718896,0.85808476,3782.6,3782.5,1.32126577]
[1717436719307,0.0267213,3782.6,3782.5,1.32126577]
[1717436719488,0.0267213,3782.6,3782.5,4.36153135]
[1717436720879,0.85835588,3782.6,3782.5,4.36153135]
[1717436723379,0.0267213,3782.6,3782.5,5.15853135]
[1717436723574,0.5812761,3782.6,3782.5,5.15853135]
[1717436726737,0.5812761,3782.6,3782.5,4.36153135]
[1717436728377,0.5812761,3782.6,3782.5,5.15853135]
[1717436729338,0.0267213,3782.6,3782.5,5.15853135]
[1717436730215,0.5812761,3782.6,3782.5,5.15853135]
[1717436731188,0.0267213,3782.6,3782.5,5.15853135]
[1717436731391,0.0267213,3782.6,3782.5,7.64953135]
[1717436732501,0.5545548,3782.8,3782.5,7.64953135]
[1717436732738,0.5545548,3782.8,3782.7,2.64361]
[1717436733032,0.5545548,3782.8,3782.7,3.96487577]
[1717436733831,0.57946307,3782.8,3782.7,3.96487577]
[1717436735905,0.02490827,3782.8,3782.7,3.96487577]
[1717436737918,0.85654285,3782.8,3782.7,3.96487577]
[1717436738533,0.02490827,3782.8,3782.7,3.96487577]
[1717436738901,0.85654285,3782.8,3782.7,3.96487577]
[1717436739450,0.02490827,3782.8,3782.7,3.96487577]
[1717436739950,0.85654285,3782.8,3782.7,3.96487577]
[1717436740155,0.85654285,3782.8,3782.7,6.35667577]
[1717436740354,0.02490827,3782.8,3782.7,6.35667577]
[1717436742759,0.55456703,3783.0,3782.7,6.35667577]
[1717436742915,0.02485203,3782.8,3782.7,5.03541]
[1717436743240,0.55456703,3783.0,3782.7,6.91806556]
[1717436743446,0.55456703,3783.0,3782.9,0.797]
[1717436744019,0.55456703,3783.1,3783.0,2.6434]
[1717436744355,0.55456703,3783.1,3783.0,3.96466577]
[1717436746654,0.83163458,3783.1,3783.0,3.96466577]
[1717436746857,1.10842454,3783.2,3783.0,3.96466577]
[1717436747063,0.83165634,3783.1,3783.0,2.6434]
[1717436747827,0.83165634,3783.2,3783.0,2.6434]
[1717436748452,0.55439945,3783.1,3783.0,2.6434]
[1717436749086,0.5793813,3783.1,3783.0,2.6434]
[1717436749959,0.02498185,3783.1,3783.0,2.6434]
[1717436750343,0.02498185,3783.1,3783.0,4.30870577]
[1717436750687,0.02498185,3783.1,3783.0,6.62950577]
[1717436752063,0.02498185,3783.1,3783.0,4.30870577]
[1717436752238,0.02498185,3783.1,3783.0,3.96466577]
[1717436752435,3.04932087,3783.1,3783.0,3.96466577]
[1717436752655,2.49508185,3783.1,3782.6,2.64362]
[1717436752980,0.83146272,3782.8,3782.7,1.32126577]
[1717436753185,1.10842454,3782.9,3782.7,1.32126577]
[1717436753337,0.02485741,3782.8,3782.7,1.32126577]
[1717436754034,0.85638051,3782.8,3782.7,1.32126577]
[1717436754357,0.76558809,3782.8,3782.2,2.64391]
[1717436754560,0.83162105,3782.4,3782.3,1.32126577]
[1717436755085,0.02452094,3782.4,3782.3,1.32126577]
[1717436755579,0.02452094,3782.4,3782.3,2.11826577]
[1717436755772,0.57887508,3782.4,3782.3,2.11826577]
[1717436755976,0.02452094,3782.4,3782.3,2.11826577]
[1717436757683,0.02452094,3782.4,3782.3,1.32126577]
[1717436757848,0.85614199,3782.4,3782.3,1.32126577]
[1717436758462,0.02452094,3782.4,3782.3,1.32126577]
[1717436758981,0.57882973,3782.4,3782.3,1.32126577]
[1717436759184,0.02452094,3782.4,3782.3,1.32126577]
[1717436759498,0.57881891,3782.4,3782.3,1.32126577]
[1717436760385,0.02452094,3782.4,3782.3,2.02377335]
[1717436760774,0.55429797,3782.6,3782.4,2.64382]
[1717436761086,0.55429797,3782.6,3782.5,2.11826577]
[1717436761648,0.55429797,3782.6,3782.5,1.32126577]
[1717436761954,0.83162105,3782.6,3782.5,1.32126577]
[1717436762153,0.83162105,3782.7,3782.5,1.32126577]
[1717436763696,0.02446014,3782.6,3782.5,1.32126577]
[1717436765466,0.85608119,3782.6,3782.5,1.32126577]
[1717436765863,0.02446014,3782.6,3782.5,1.32126577]
[1717436766869,0.85608119,3782.6,3782.5,1.32126577]
[1717436767604,0.02446014,3782.6,3782.5,1.32126577]
[1717436768901,0.85600117,3782.6,3782.5,1.32126577]
[1717436770497,0.02446014,3782.6,3782.5,1.32126577]
[1717436770886,0.02446014,3782.6,3782.0,2.64403]
[1717436771081,0.55433294,3782.3,3782.1,1.32126577]
[1717436771398,2.447,3782.4,3782.1,1.32126577]
[1717436771399,0.57860426,3782.2,3782.1,1.32126577]
[1717436771983,0.02427132,3782.2,3782.1,4.05649535]
[1717436772472,0.55433294,3782.5,3782.2,2.64396]
[1717436772671,0.55433294,3782.5,3782.4,3.44082]
[1717436772872,0.55433294,3782.5,3782.4,4.76208577]
[1717436773178,0.55433294,3782.5,3782.4,3.96508577]
[1717436773488,0.55433294,3782.5,3782.4,5.43211731]
[1717436775962,1.10842454,3782.9,3782.4,5.43211731]
[1717436775963,0.55433294,3782.6,3782.4,5.43211731]
[1717436776204,0.55433294,3782.6,3782.5,1.32126577]
[1717436778501,0.83149941,3782.7,3782.5,1.32126577]
[1717436778799,0.02441108,3782.6,3782.5,1.32126577]
[1717436780006,0.85591049,3782.6,3782.5,1.32126577]
[1717436781479,0.02441108,3782.6,3782.5,1.32126577]
[1717436782224,0.57858154,3782.6,3782.5,1.32126577]
[1717436782384,0.02441108,3782.6,3782.5,1.32126577]
[1717436782729,0.57858059,3782.6,3782.5,1.32126577]
[1717436783083,0.59578958,3782.6,3782.5,1.32126577]
[1717436784236,0.59578602,3782.6,3782.5,1.32126577]
[1717436785510,0.59578305,3782.6,3782.5,1.32126577]
[1717436785724,0.02441108,3782.6,3782.5,1.32126577]
[1717436785919,0.59578257,3782.6,3782.5,1.32126577]
[1717436788733,3.01443966,3782.6,3782.5,1.32126577]
[1717436789342,1.47255724,3782.6,3782.5,1.32126577]
[1717436789517,2.58098178,3782.6,3782.5,1.32126577]
[1717436791229,2.58098178,3782.6,3781.7,0.797]
[1717436791230,2.4138,3782.5,3781.7,2.64425]
[1717436791445,4.00113765,3781.9,3781.8,1.32126577]
[1717436791594,2.98517537,3781.9,3781.8,1.32126577]
[1717436791795,3.00845725,3781.9,3781.8,1.32126577]
[1717436792212,2.18222009,3781.9,3781.8,1.32126577]
[1717436792411,0.59465725,3781.9,3781.8,1.32126577]
[1717436792633,0.02328188,3781.9,3781.8,1.32126577]
[1717436793028,0.85492585,3781.9,3781.8,1.32126577]
[1717436793750,1.39179936,3781.9,3781.8,1.32126577]
[1717436794125,0.59479936,3781.9,3781.8,1.32126577]
[1717436794329,0.02328188,3781.9,3781.8,1.32126577]
[1717436794516,3.26796414,3782.0,3781.8,1.32126577]
[1717436794715,4.05262103,3782.0,3781.8,1.32126577]
[1717436794915,0.57151748,3781.9,3781.8,1.32126577]
[1717436795115,3.50422527,3782.0,3781.8,1.32126577]
[1717436795116,2.69644666,3782.0,3781.8,1.32126577]
[1717436795350,3.26797877,3782.0,3781.8,1.32126577]
[1717436795879,1.10888382,3781.9,3781.8,1.32126577]
[1717436796149,2.4113,3781.8,3781.3,2.64453]
[1717436796349,0.55416516,3781.6,3781.4,1.32126577]
[1717436796568,1.35116516,3781.5,3780.5,2.3269]
[1717436796763,0.55423553,3781.4,3780.6,1.32126577]
[1717436797358,0.55423553,3781.3,3780.6,1.32126577]
[1717436797918,0.55423553,3781.1,3780.6,1.32126577]
[1717436798113,1.58756284,3781.4,3780.6,1.32126577]
[1717436798114,0.55423553,3781.2,3780.7,2.64497]
[1717436798417,0.55423553,3781.2,3780.8,1.32126577]
[1717436798943,2.96853553,3781.2,3780.8,1.32126577]
[1717436799690,1.35123553,3781.0,3780.8,1.32126577]
[1717436799892,0.55423553,3780.9,3780.8,1.32126577]
[1717436800067,1.35123553,3781.0,3780.8,1.32126577]
[1717436800795,0.55423553,3781.0,3780.8,1.32126577]
[1717436801200,4.66098235,3781.2,3780.8,1.32126577]
[1717436801201,0.55423553,3781.1,3780.8,1.32126577]
[1717436801374,1.34543299,3781.1,3780.8,1.32126577]
[1717436802223,0.797,3781.0,3780.8,1.32126577]
[1717436803881,2.96853553,3781.2,3780.8,1.32126577]
[1717436804494,2.4143,3781.2,3780.8,1.32126577]
[1717436804694,0.55423553,3781.3,3781.2,4.94186]
[1717436804899,0.55423553,3782.3,3781.8,2.64424]
[1717436805123,0.55423553,3782.4,3782.0,3.96534577]
[1717436805328,0.55423553,3782.5,3782.3,2.64385]
[1717436805477,0.55423553,3782.7,3782.4,1.32126577]
[1717436805908,0.55423553,3782.8,3782.4,1.32126577]
[1717436806088,0.96245953,3782.8,3782.4,1.32126577]
[1717436806595,0.96245953,3782.8,3782.5,2.64374]
[1717436806800,0.55423553,3782.9,3782.6,1.32126577]
[1717436807071,0.55423553,3782.8,3782.6,1.32126577]
[1717436807497,1.58787286,3783.1,3782.6,1.32126577]
[1717436807498,0.55423553,3782.9,3782.6,1.32126577]
[1717436807895,0.55423553,3783.0,3782.6,1.32126577]
[1717436809015,0.55423553,3783.0,3782.1,2.64398]
[1717436809215,0.55423553,3782.8,3782.2,1.32126577]
[1717436809376,0.55423553,3782.7,3782.2,1.32126577]
[1717436809574,0.35440406,3782.6,3782.2,1.32126577]
[1717436810307,0.55423553,3782.7,3782.2,1.32126577]
[1717436811512,0.55423553,3782.8,3782.2,1.32126577]
[1717436811879,0.55423553,3782.8,3782.3,2.64387]
[1717436812149,0.55423553,3782.8,3782.3,3.96513577]
[1717436812910,0.55423553,3782.7,3782.3,3.96513577]
[1717436813077,0.35441792,3782.6,3782.3,3.96513577]
[1717436815615,0.35441792,3782.6,3781.9,2.64413]
[1717436815820,0.35441792,3782.6,3782.0,1.32126577]
[1717436816318,0.90865345,3782.6,3782.0,1.32126577]
[1717436816523,0.35441792,3782.6,3782.0,1.32126577]
[1717436816723,0.55423553,3782.7,3782.0,1.32126577]
[1717436818945,0.55423553,3782.6,3782.0,1.32126577]
[1717436819442,0.55423553,3782.7,3782.0,1.32126577]
[1717436819657,2.81433553,3782.5,3781.5,2.64442]
[1717436819853,2.81433553,3782.5,3781.6,1.32126577]
[1717436820249,0.55423553,3782.1,3781.6,1.32126577]
[1717436822250,0.55423553,3782.0,3781.1,2.64466]
[1717436822453,0.82553787,3781.9,3781.2,1.32126577]
[1717436822825,0.55423553,3781.8,3781.2,1.32126577]
[1717436823912,0.57157189,3781.9,3781.4,1.32126577]
[1717436824224,0.55423553,3782.2,3782.0,2.6441]
[1717436824547,0.55423553,3782.2,3782.1,1.32126577]
[1717436824707,0.55423553,3782.6,3782.1,1.32126577]
[1717436824910,0.55423553,3782.7,3782.2,2.64395]